bitfinex-derivatives/quotes_ETHF0:USTF0_20250911
["timestamp","ask_amount","ask_price","bid_price","bid_amount"]
[1757555252616,0.7161,4367.8,4367.7,0.4391]
[1757555257328,0.7161,4367.8,4367.7,0.231]
[1757555258933,0.7161,4367.8,4367.7,0.4391]
[1757555260435,0.7161,4367.8,4367.7,0.738]
[1757555261340,0.7161,4367.8,4367.7,0.9537]
[1757555263839,0.7161,4367.8,4367.7,1.95806085]
[1757555267842,0.3136,4367.8,4367.7,1.95806085]
[1757555268430,0.5095,4367.8,4367.7,1.95806085]
[1757555270843,0.3136,4368.4,4368.3,0.4238]
[1757555271140,0.3136,4368.9,4368.8,0.7227]
[1757555271744,0.5095,4368.9,4368.8,0.7227]
[1757555272150,0.5095,4368.9,4368.8,1.72706085]
[1757555283251,0.3136,4368.9,4368.8,1.72706085]
[1757555285059,0.5202,4368.9,4368.8,0.7227]
[1757555286660,0.3136,4368.9,4368.8,0.7227]
[1757555289056,0.5358,4370.0,4369.9,0.5048]
[1757555289760,1.86386085,4370.0,4369.3,0.23]
[1757555289963,0.1293,4369.5,4369.4,0.2024]
[1757555290354,0.5348,4369.5,4369.4,0.2024]
[1757555290555,0.8585,4369.5,4369.4,0.5048]
[1757555296265,0.8585,4369.5,4369.4,0.7133]
[1757555299957,0.8585,4369.5,4369.4,1.71766085]
[1757555301864,0.3237,4369.5,4369.4,1.71766085]
[1757555307170,0.5303,4369.5,4369.4,1.71766085]
[1757555307670,0.5303,4369.5,4369.4,0.7133]
[1757555307967,0.1962,4369.0,4368.9,2.45754452]
[1757555308267,0.1242,4369.5,4369.0,0.306]
[1757555308572,0.5368,4369.5,4369.4,1.73496085]
[1757555308868,0.1962,4369.5,4369.4,1.73496085]
[1757555309072,0.1303,4370.0,4369.4,1.42896085]
[1757555309271,0.5021,4369.8,4369.7,1.73496085]
[1757555317074,0.3059,4369.8,4369.7,1.73496085]
[1757555319375,0.5021,4369.8,4369.7,1.73496085]
[1757555320372,0.5021,4369.8,4369.7,0.7306]
[1757555320570,0.2283,4371.0,4369.7,0.7306]
[1757555320771,0.94733,4370.4,4370.3,0.2097]
[1757555320970,0.94733,4370.4,4370.3,0.5157]
[1757555321784,0.5021,4370.9,4370.8,0.7306]
[1757555322071,0.5021,4370.9,4370.3,1.18813891]
[1757555322072,0.5368,4371.5,4371.4,0.5157]
[1757555322279,0.76556,4371.5,4371.4,0.5157]
[1757555322473,1.07146,4371.5,4371.4,0.2097]
[1757555322671,0.8427,4371.5,4371.4,0.2097]
[1757555325581,0.8427,4371.5,4371.4,0.5157]
[1757555327583,0.8427,4371.5,4371.4,0.2097]
[1757555328283,0.8427,4371.5,4371.4,0.7306]
[1757555329787,0.8427,4371.5,4371.4,0.4246]
[1757555330581,0.8427,4371.5,4370.9,0.306]
[1757555332482,0.1242,4371.0,4369.6,2.86355657]
[1757555332682,0.7185,4370.9,4370.8,0.2097]
[1757555333077,0.7185,4370.9,4370.8,0.7306]
[1757555334679,0.7185,4370.9,4370.4,1.72413891]
[1757555334986,0.7185,4370.6,4370.5,0.5157]
[1757555335384,0.5021,4370.6,4370.5,0.7306]
[1757555336482,0.1242,4371.0,4370.5,0.7306]
[1757555336690,0.5021,4370.9,4370.8,1.91873891]
[1757555337482,0.3059,4370.9,4370.8,1.91873891]
[1757555337990,0.1242,4371.5,4370.8,1.61273891]
[1757555338291,0.7368,4371.4,4371.3,0.7085]
[1757555341289,0.7368,4371.4,4371.3,0.3996]
[1757555342285,0.7368,4371.4,4371.3,0.1975]
[1757555343693,0.3244,4371.3,4371.0,1.49703891]
[1757555343886,0.4124,4371.1,4371.0,1.38563891]
[1757555344190,0.7368,4371.1,4371.0,1.38563891]
[1757555344389,0.4449,4371.0,4370.6,0.3089]
[1757555344590,0.5329,4370.5,4370.4,0.23]
[1757555344887,0.7368,4370.1,4370.0,0.5064]
[1757555345091,0.7368,4370.1,4370.0,0.7085]
[1757555345892,0.521,4370.1,4370.0,0.7085]
[1757555346888,0.7368,4370.1,4370.0,0.7085]
[1757555347588,0.521,4370.1,4370.0,0.7085]
[1757555347788,0.3244,4370.9,4370.4,0.3089]
[1757555348092,0.521,4370.9,4370.8,1.89663891]
[1757555348887,0.3244,4371.4,4370.9,0.3089]
[1757555349093,0.7368,4371.4,4371.3,0.7085]
[1757555349783,0.7368,4371.4,4371.3,0.3996]
[1757555350395,0.3244,4371.3,4370.8,1.18813891]
[1757555350696,0.521,4371.0,4370.9,0.7085]
[1757555350881,0.8573,4371.0,4370.9,0.7085]
[1757555351083,0.3244,4370.9,4370.5,2.04593268]
[1757555351290,0.8573,4370.5,4370.4,0.7364]
[1757555351689,0.8573,4370.5,4370.4,0.9385]
[1757555352096,0.8573,4370.5,4370.4,0.6296]
[1757555354792,0.8573,4370.5,4370.4,0.9385]
[1757555356297,0.8573,4370.5,4370.4,2.12663891]
[1757555362700,0.8573,4370.5,4370.4,0.6296]
[1757555363004,0.8573,4370.5,4370.4,0.23]
[1757555363204,0.3244,4370.4,4370.2,2.04593268]
[1757555363500,0.3244,4369.9,4369.7,2.04593268]
[1757555363810,0.8573,4369.5,4369.4,2.04593268]
[1757555364105,0.7368,4369.1,4369.0,2.24343268]
[1757555364494,0.7368,4369.1,4368.9,0.23]
[1757555364694,0.1205,4369.5,4368.9,0.23]
[1757555364695,0.8573,4369.0,4368.9,0.23]
[1757555365798,0.4124,4368.3,4368.2,2.55233268]
[1757555365995,0.7368,4368.3,4368.2,0.1975]
[1757555366704,0.7368,4368.3,4368.2,0.5064]
[1757555367903,0.7368,4368.3,4368.2,0.7085]
[1757555370908,0.521,4368.3,4368.2,0.7085]
[1757555371113,0.5295,4368.9,4368.8,0.7249]
[1757555371410,0.7345,4368.9,4368.8,0.7249]
[1757555372299,0.1205,4369.5,4368.9,0.3252]
[1757555372507,0.7345,4369.4,4369.3,0.5221]
[1757555372705,0.7345,4369.4,4369.3,0.1969]
[1757555373100,0.7345,4369.4,4369.3,0.7249]
[1757555374812,0.3164,4369.9,4369.4,0.3252]
[1757555375012,0.7345,4369.9,4369.8,0.1969]
[1757555376804,0.7345,4369.9,4369.6,0.3252]
[1757555376805,0.7345,4369.4,4369.0,0.3252]
[1757555377105,0.5295,4368.8,4368.7,0.7249]
[1757555377305,0.3164,4369.4,4368.7,0.3997]
[1757555377510,0.7345,4369.4,4369.3,0.1969]
[1757555379415,0.7345,4369.4,4369.0,0.3252]
[1757555379811,0.1181,4369.0,4368.5,1.18813891]
[1757555380016,0.4181,4368.6,4368.5,1.38503891]
[1757555380314,0.7345,4368.6,4368.5,1.91303891]
[1757555382322,0.7345,4368.6,4368.5,1.72864953]
[1757555385916,0.3164,4368.4,4368.0,2.04593268]
[1757555386121,0.7345,4367.9,4367.5,1.32894953]
[1757555386420,0.7345,4367.8,4367.7,0.1969]
[1757555386612,0.7345,4367.8,4367.7,1.20064953]
[1757555386809,0.7345,4367.8,4367.7,1.40344953]
[1757555387016,0.7345,4367.8,4367.7,1.72864953]
[1757555388122,0.7345,4367.8,4367.7,0.7249]
[1757555388423,0.7345,4367.8,4367.7,1.72864953]
[1757555388621,0.7345,4367.8,4367.7,0.1969]
[1757555388814,0.8526,4367.5,4367.4,0.7521]
[1757555389116,0.5295,4367.5,4367.4,1.95864953]
[1757555391216,0.7345,4367.5,4367.4,1.95864953]
[1757555392522,0.8526,4367.5,4367.4,0.6297]
[1757555392724,0.8526,4367.5,4367.4,1.43064953]
[1757555393223,0.8526,4367.5,4367.4,1.75584953]
[1757555393923,0.8526,4367.5,4367.4,1.43064953]
[1757555395830,0.8526,4367.5,4367.4,1.75584953]
[1757555397825,0.1181,4368.0,4367.4,1.95864953]
[1757555398029,0.5325,4367.9,4367.8,0.7426]
[1757555398219,0.5325,4367.9,4367.8,1.74634953]
[1757555398423,0.7402,4367.9,4367.8,1.74634953]
[1757555400525,0.7402,4367.9,4367.8,1.42934953]
[1757555400923,0.7402,4367.9,4367.5,1.00374953]
[1757555401124,0.7402,4367.3,4367.2,1.53354953]
[1757555401325,0.7402,4367.3,4367.2,1.74634953]
[1757555404331,0.1181,4368.0,4367.3,0.317]
[1757555404531,0.1181,4368.0,4367.8,1.21654953]
[1757555404532,0.7402,4367.9,4367.8,1.21654953]
[1757555405425,0.7402,4367.9,4367.5,1.00374953]
[1757555405622,0.7402,4367.8,4367.7,0.2128]
[1757555405824,0.7402,4367.8,4367.7,0.5298]
[1757555406031,0.7402,4367.8,4367.7,0.2128]
[1757555408435,0.5342,4367.5,4367.4,1.53354953]
[1757555408636,0.8582,4367.5,4367.4,0.5298]
[1757555409636,0.8582,4367.5,4367.4,0.7426]
[1757555412633,0.8582,4367.5,4367.4,0.4256]
[1757555415936,0.5342,4367.5,4367.2,2.04593268]
[1757555416138,0.7402,4367.2,4367.1,2.04593268]
[1757555416440,0.7402,4366.7,4366.6,0.2128]
[1757555416838,0.118,4366.5,4366.4,2.04593268]
[1757555417139,0.8582,4366.5,4366.4,2.25873268]
[1757555417440,0.8582,4366.5,4366.4,0.2128]
[1757555418032,0.8582,4366.5,4366.4,0.5298]
[1757555419737,0.8582,4366.5,4366.4,0.2128]
[1757555420148,0.8582,4366.5,4366.4,0.7426]
[1757555422051,0.7402,4366.5,4366.4,0.7426]
[1757555422543,0.118,4367.0,4366.5,0.317]
[1757555422740,0.7402,4366.9,4366.8,0.4256]
[1757555422945,0.7402,4366.9,4366.8,0.7426]
[1757555423549,0.7402,4366.9,4366.7,1.00374953]
[1757555423845,0.7402,4366.8,4366.7,1.53354953]
[1757555424147,0.7402,4366.8,4366.7,1.74634953]
[1757555424646,0.7402,4366.8,4366.7,0.4256]
[1757555424945,0.5342,4366.5,4366.4,1.74634953]
[1757555425146,0.8582,4366.5,4366.4,1.74634953]
[1757555425346,0.8582,4366.5,4366.4,0.7426]
[1757555427747,0.8582,4366.5,4366.4,0.4256]
[1757555428342,0.5342,4366.5,4365.9,0.3061]
[1757555428549,0.4098,4365.7,4365.6,2.54913268]
[1757555428748,0.7085,4365.7,4365.6,0.5032]
[1757555429245,0.7085,4365.7,4365.6,0.72]
[1757555433147,0.7085,4365.7,4365.6,1.95374953]
[1757555434655,0.7085,4365.7,4365.6,0.95]
[1757555434858,0.7085,4365.7,4365.6,1.95374953]
[1757555437155,0.7085,4365.7,4365.6,0.23]
[1757555437548,0.7085,4365.7,4365.6,0.4271]
[1757555437749,0.2987,4365.6,4365.0,40.1]
[1757555437955,0.7085,4365.4,4365.3,1.72374953]
[1757555440958,0.5102,4365.4,4365.3,1.72374953]
[1757555444352,0.5102,4365.4,4365.3,0.72]
[1757555444552,0.7085,4365.4,4365.3,0.72]
[1757555444957,0.7085,4365.4,4365.0,1.19047369]
[1757555445253,0.4098,4365.2,4365.1,0.4271]
[1757555445455,0.7085,4365.2,4365.1,0.7332]
[1757555446062,0.7085,4365.2,4365.1,0.95]
[1757555447459,0.5102,4365.2,4365.1,0.95]
[1757555451553,0.2987,4365.9,4365.2,0.3061]
[1757555451758,0.7085,4365.9,4365.8,0.72]
[1757555452565,0.7085,4365.9,4365.8,0.1971]
[1757555454769,0.7085,4365.9,4365.5,0.3061]
[1757555455465,0.4098,4365.3,4365.2,2.54913268]
[1757555455767,0.7085,4365.3,4365.2,2.76593268]
[1757555461670,0.5325,4366.0,4365.9,0.2037]
[1757555461969,0.5325,4366.0,4365.9,0.7363]
[1757555462169,0.2147,4366.0,4365.9,0.7363]
[1757555462371,0.5152,4366.0,4365.9,0.7363]
[1757555463166,0.3005,4365.9,4365.8,0.2037]
[1757555463373,0.7109,4365.9,4365.8,0.2037]
[1757555463573,0.5152,4365.9,4365.8,0.7363]
[1757555465573,0.118,4366.5,4365.8,0.7363]
[1757555465763,0.7109,4366.4,4366.3,0.4181]
[1757555465968,0.7109,4366.4,4366.3,0.7363]
[1757555466268,0.7109,4366.4,4366.3,0.4181]
[1757555466472,0.7109,4366.4,4366.3,0.2037]
[1757555473980,0.7109,4366.4,4366.3,0.5219]
[1757555474778,0.7109,4366.4,4366.3,0.2037]
[1757555475579,0.4104,4365.8,4365.7,0.7363]
[1757555475774,0.7109,4365.8,4365.7,0.7363]
[1757555476277,0.7109,4365.8,4365.7,0.4181]
[1757555476879,0.7109,4365.8,4365.7,0.7363]
[1757555480973,0.5152,4365.8,4365.7,0.7363]
[1757555481175,0.3005,4365.8,4365.7,0.7363]
[1757555481477,0.7109,4366.4,4366.3,0.5219]
[1757555481980,0.7109,4366.4,4366.3,0.2037]
[1757555482178,0.7109,4366.4,4366.1,0.3182]
[1757555482381,0.4104,4366.4,4365.8,0.3182]
[1757555482582,0.5152,4365.9,4365.8,0.7363]
[1757555482881,0.7109,4365.9,4365.8,0.7363]
[1757555484281,0.3005,4365.8,4365.6,2.04593268]
[1757555484483,0.4104,4365.9,4365.6,2.04593268]
[1757555484484,0.4104,4365.7,4365.6,2.04593268]
[1757555484684,0.7109,4365.7,4365.6,2.04593268]
[1757555485780,0.7109,4365.7,4365.6,2.24963268]
[1757555486986,0.7109,4365.7,4365.6,2.56783268]
[1757555487887,0.7109,4365.7,4365.6,2.78223268]
[1757555488388,0.7109,4365.7,4365.6,0.7363]
[1757555489683,0.7109,4365.7,4365.6,2.79248714]
[1757555492087,0.3169,4365.9,4365.8,0.4017]
[1757555492290,0.3169,4365.9,4365.8,0.7267]
[1757555492491,0.3169,4365.9,4365.8,2.78288714]
[1757555493490,0.5178,4365.9,4365.8,2.78288714]
[1757555494388,0.3169,4365.9,4365.8,2.78288714]
[1757555494785,0.5178,4365.9,4365.8,2.78288714]
[1757555498394,0.5178,4365.9,4365.8,0.7267]
[1757555498594,0.5178,4365.9,4365.8,2.78405704]
[1757555499286,0.2009,4366.5,4366.4,0.7267]
[1757555499785,0.5178,4366.5,4366.4,0.7267]
[1757555499986,0.7144,4366.5,4366.4,0.7267]
[1757555500901,0.843,4366.5,4366.4,0.7267]
[1757555502498,0.5178,4366.5,4366.4,0.7267]
[1757555502704,0.3169,4366.9,4366.8,0.7267]
[1757555503000,0.3169,4367.4,4367.0,0.1189]
[1757555503202,0.5178,4367.4,4367.3,0.7267]
[1757555503998,0.7144,4367.4,4367.3,0.7267]
[1757555504407,0.1286,4368.0,4367.3,1.40622376]
[1757555504701,0.7144,4367.9,4367.8,0.2011]
[1757555504901,0.7144,4367.9,4367.3,1.00452376]
[1757555505092,0.3169,4367.8,4367.3,1.00452376]
[1757555505294,0.5178,4367.5,4367.4,0.7267]
[1757555508306,0.7144,4367.5,4367.4,0.7267]
[1757555513305,0.2009,4368.0,4367.9,0.4017]
[1757555513506,0.5178,4368.4,4368.3,0.7267]
[1757555513705,0.5178,4368.4,4368.3,1.73122376]
[1757555514712,0.5178,4368.4,4368.3,0.7267]
[1757555518917,0.5178,4368.4,4368.3,1.73122376]
[1757555519911,0.7144,4368.4,4368.3,0.7267]
[1757555521612,1.40202376,4368.4,4367.6,40.1]
[1757555521814,1.40202376,4368.4,4366.9,2.23304549]
[1757555521815,0.5327,4367.5,4366.9,2.05735704]
[1757555522017,1.85332376,4367.0,4366.9,0.2083]
[1757555522319,0.8488,4367.0,4366.9,0.7261]
[1757555523813,0.8488,4367.0,4366.9,0.4122]
[1757555524014,0.5327,4367.0,4366.6,0.3139]
[1757555524215,0.7297,4366.7,4366.6,0.2083]
[1757555524820,0.7297,4366.7,4366.6,0.7261]
[1757555526917,0.1191,4366.5,4366.3,1.23452376]
[1757555527121,0.4352,4366.5,4366.4,0.2083]
[1757555527421,0.8488,4366.5,4366.4,0.2083]
[1757555527719,0.8488,4366.5,4366.4,0.5222]
[1757555529211,0.8488,4366.5,4366.4,0.7261]
[1757555529609,0.8488,4366.5,4366.4,0.4122]
[1757555530017,0.8488,4366.5,4366.1,0.3139]
[1757555530508,0.5327,4366.5,4366.1,0.3139]
[1757555530707,0.5327,4366.5,4366.3,0.2083]
[1757555530708,0.7297,4366.4,4366.3,0.2083]
[1757555534825,0.7297,4366.4,4366.3,1.73062376]
[1757555535026,0.5177,4366.4,4366.3,1.73062376]
[1757555535620,0.3161,4367.1,4366.8,0.4122]
[1757555535928,0.7297,4367.4,4367.3,0.2083]
[1757555536128,0.1191,4368.5,4367.3,1.73062376]
[1757555536320,0.5177,4367.9,4367.8,1.73062376]
[1757555536519,0.7297,4367.9,4367.8,1.73062376]
[1757555536830,0.7297,4367.9,4367.8,0.7261]
[1757555537226,0.7297,4367.9,4367.8,0.4122]
[1757555537728,0.7297,4367.9,4367.8,0.2083]
[1757555538020,0.1191,4368.0,4367.5,1.31842376]
[1757555538225,0.7297,4367.6,4367.5,0.5222]
[1757555538417,0.7297,4367.6,4367.5,0.2083]
[1757555538624,0.7297,4367.3,4367.2,0.5222]
[1757555539623,0.7297,4367.3,4367.2,0.7261]
[1757555541830,0.7297,4367.0,4366.9,1.73062376]
[1757555547228,0.5177,4367.0,4366.9,1.73062376]
[1757555547826,0.1191,4367.5,4366.9,1.41672376]
[1757555547827,0.3009,4367.4,4366.9,1.41672376]
[1757555548031,0.7146,4367.4,4367.3,0.6953]
[1757555548535,0.7146,4367.4,4367.3,0.3994]
[1757555551233,0.7146,4367.4,4367.0,0.2959]
[1757555551439,0.1275,4367.0,4366.9,0.1994]
[1757555551741,0.8421,4367.0,4366.9,0.1994]
[1757555553037,0.8421,4367.0,4366.9,0.6953]
[1757555554238,0.3009,4366.9,4366.8,3.2918808]
[1757555554439,0.7146,4366.9,4366.8,3.4912808]
[1757555554737,0.7146,4366.9,4366.8,0.23]
[1757555554931,0.7146,4366.3,4366.2,4.36338033]
[1757555555133,0.7146,4366.3,4366.2,1.43392376]
[1757555555837,0.7146,4366.3,4366.2,1.72982376]
[1757555556039,0.7146,4366.3,4366.2,1.92982376]
[1757555560342,0.7146,4366.3,4366.2,1.63392376]
[1757555560542,0.7146,4366.3,4366.2,1.92982376]
[1757555561042,0.7146,4366.3,4366.2,1.43392376]
[1757555561238,0.7146,4366.3,4366.2,0.23]
[1757555561746,0.7146,4366.3,4366.2,0.9253]
[1757555561940,0.7146,4366.3,4366.2,0.6294]
[1757555562140,0.7146,4366.3,4366.2,0.23]
[1757555562642,0.7146,4366.3,4365.8,1.00452376]
[1757555562848,0.4137,4365.6,4365.5,1.00452376]
[1757555563039,0.7146,4365.6,4365.5,1.20392376]
[1757555563443,0.7146,4365.6,4365.5,1.00452376]
[1757555563743,0.1275,4365.5,4364.9,2.05735704]
[1757555563950,0.7146,4365.0,4364.9,2.75265704]
[1757555564144,0.3009,4365.4,4364.9,2.68675704]
[1757555564447,0.5412,4365.5,4365.4,0.3994]
[1757555564745,0.8421,4365.5,4365.4,0.3994]
[1757555565848,0.8421,4365.5,4365.4,0.6953]
[1757555566752,0.8421,4365.5,4365.4,0.3994]
[1757555566948,0.8421,4365.5,4365.4,0.1994]
[1757555567951,0.8421,4365.5,4365.1,0.2959]
[1757555568146,0.5,4365.0,4364.9,2.11582051]
[1757555568347,0.3009,4365.4,4364.9,1.81992051]
[1757555568652,0.8421,4365.5,4365.4,0.6953]
[1757555568839,0.7146,4365.5,4365.4,0.6953]
[1757555569045,0.7146,4365.5,4364.7,2.05735704]
[1757555569046,0.4137,4364.8,4364.7,2.05735704]
[1757555569253,0.7146,4364.8,4364.7,0.1994]
[1757555574256,0.7146,4364.8,4363.9,1.19052051]
[1757555574550,0.7146,4363.5,4363.4,0.6953]
[1757555574845,0.7146,4363.5,4363.3,1.19052051]
[1757555574846,0.3009,4363.9,4363.8,0.3994]
[1757555575045,0.3009,4363.9,4363.8,0.6953]
[1757555575257,0.3009,4364.4,4363.9,0.2959]
[1757555575555,0.5412,4364.5,4364.4,0.1994]
[1757555575944,0.4284,4365.0,4364.5,0.1188]
[1757555576249,0.5,4365.0,4364.9,0.6953]
[1757555576559,0.8421,4365.0,4364.9,0.3994]
[1757555577353,0.8421,4365.0,4364.9,0.7085]
[1757555578054,0.7146,4365.0,4364.9,0.7085]
[1757555578257,0.5,4365.0,4364.9,0.7085]
[1757555584662,0.4194,4364.8,4364.7,0.3091]
[1757555584864,0.739,4364.8,4364.7,0.7227]
[1757555586171,0.5286,4364.8,4364.7,0.7227]
[1757555587764,1.31802051,4366.0,4364.7,0.4136]
[1757555587971,0.3196,4365.4,4364.8,0.3091]
[1757555588770,0.739,4365.4,4365.3,0.2016]
[1757555591772,0.739,4365.4,4365.0,0.3091]
[1757555592770,0.4194,4364.3,4364.2,2.86355657]
[1757555593064,0.739,4364.3,4364.2,0.2016]
[1757555593875,0.3196,4364.9,4364.3,0.3091]
[1757555594172,0.739,4364.9,4364.8,0.7227]
[1757555604279,0.5286,4364.9,4364.8,0.7227]
[1757555609688,0.3196,4364.9,4364.8,0.7227]
[1757555609888,0.7025,4365.4,4365.3,0.4086]
[1757555610083,0.7025,4365.4,4365.3,0.7254]
[1757555610284,0.7025,4365.4,4365.3,0.4086]
[1757555610485,0.7025,4365.4,4365.3,0.7254]
[1757555610793,0.7025,4365.4,4365.3,0.4086]
[1757555611888,0.22908,4365.3,4365.0,0.1285]
[1757555612095,1.76535178,4365.2,4364.5,0.1285]
[1757555612285,1.19052051,4364.6,4364.5,0.1285]
[1757555614190,1.19052051,4364.6,4364.5,0.4453]
[1757555617393,5.19052051,4364.6,4364.5,0.4453]
[1757555619393,1.19052051,4364.6,4364.5,0.4453]
[1757555624394,1.19052051,4364.6,4364.0,0.1285]
[1757555624395,5.19052051,4364.6,4364.0,0.1285]
[1757555624692,1.19052051,4364.1,4364.0,0.3404]
[1757555625092,1.19052051,4364.1,4364.0,0.5371]
[1757555625389,1.19052051,4364.5,4364.0,0.5371]
[1757555626391,1.19052051,4364.5,4364.1,0.5287]
[1757555626697,1.19052051,4364.5,4364.2,0.2119]
[1757555626896,1.19052051,4364.5,4364.3,0.5287]
[1757555627096,1.19052051,4364.5,4364.4,0.3168]
[1757555627992,0.18634306,4365.3,4364.4,0.3168]
[1757555627993,32.995,4366.2,4364.4,0.7254]
[1757555628198,1.19052051,4364.9,4364.8,0.5287]
[1757555628394,1.00593081,4364.9,4364.8,0.5287]
[1757555628897,0.231,4366.1,4364.8,0.3168]
[1757555629098,1.00593081,4364.9,4364.8,0.3168]
[1757555630199,1.00593081,4364.9,4364.8,0.5287]
[1757555640913,0.231,4365.5,4365.1,0.3098]
[1757555641101,1.00593081,4365.2,4365.1,0.5257]
[1757555641315,1.00593081,4365.2,4365.1,0.2159]
[1757555641916,1.00593081,4365.2,4365.1,0.5257]
[1757555643227,34.00093081,4366.2,4366.1,0.3098]
[1757555643428,35.83460042,4366.2,4366.1,0.3098]
[1757555644226,35.83460042,4366.2,4365.5,0.1294]
[1757555644415,1.00593081,4365.6,4365.0,0.3453]
[1757555644619,1.00593081,4365.1,4365.0,0.3453]
[1757555644827,1.00593081,4365.1,4365.0,0.1294]
[1757555645528,1.00593081,4365.1,4365.0,0.3453]
[1757555645728,1.00593081,4365.1,4364.5,0.3444]
[1757555645928,1.00593081,4364.6,4364.5,0.3444]
[1757555646128,1.00593081,4364.6,4364.5,0.6542]
[1757555646828,1.00593081,4364.6,4364.5,0.8586]
[1757555653331,1.00593081,4364.9,4364.6,0.3098]
[1757555653528,1.00593081,4364.9,4364.8,0.7301]
[1757555655831,0.231,4365.6,4365.5,0.4392]
[1757555656032,1.23693081,4365.6,4365.5,0.4392]
[1757555656721,0.231,4365.7,4365.5,0.3453]
[1757555656923,1.00593081,4365.6,4365.5,0.6551]
[1757555659834,1.00593081,4365.6,4365.5,0.4392]
[1757555660033,1.6013862,4365.6,4365.5,0.4392]
[1757555668138,1.8323862,4365.6,4365.5,0.4392]
[1757555669643,1.6013862,4365.6,4365.5,0.4392]
[1757555669939,1.8323862,4365.6,4365.5,0.4392]
[1757555670341,1.8323862,4365.6,4365.5,0.8669]
[1757555670643,1.23693081,4365.6,4365.5,0.8657]
[1757555672036,1.00593081,4365.6,4365.5,0.8657]
[1757555690355,1.19080478,4365.8,4365.6,0.3086]
[1757555690560,1.19080478,4365.8,4365.7,0.2132]
[1757555690956,1.19080478,4365.8,4365.7,0.5218]
[1757555692355,1.19080478,4366.1,4365.8,0.3086]
[1757555692656,1.19080478,4366.3,4366.1,0.5218]
[1757555692963,1.19080478,4366.3,4366.2,0.5218]
[1757555695251,1.19080478,4366.3,4366.2,0.7363]
[1757555698364,1.78540343,4366.3,4366.2,0.7363]
[1757555698764,1.19080478,4366.3,4366.2,0.7363]
[1757555699358,1.78559446,4366.3,4366.2,0.7363]
[1757555703162,1.19080478,4366.8,4366.2,0.7363]
[1757555703466,1.19080478,4366.8,4366.5,0.3173]
[1757555703659,1.19080478,4366.8,4366.6,0.1958]
[1757555703860,1.19080478,4366.8,4366.7,0.3109]
[1757555704061,1.78503932,4366.8,4366.7,0.3109]
[1757555704260,1.19080478,4366.8,4366.7,0.3109]
[1757555705462,1.19080478,4366.8,4366.7,0.5067]
[1757555705668,0.23,4366.9,4366.8,0.3109]
[1757555706055,0.23,4366.9,4366.8,0.7051]
[1757555707765,1.19080478,4367.1,4366.8,0.3942]
[1757555707969,1.19080478,4367.1,4367.0,0.6282]
[1757555708169,2.01459209,4367.1,4367.0,0.6282]
[1757555708670,1.42080478,4367.1,4367.0,0.6282]
[1757555713178,1.42080478,4367.1,4367.0,0.8266]
[1757555714180,1.19080478,4367.1,4367.0,0.8266]
[1757555714376,1.42080478,4367.1,4367.0,0.8266]
[1757555717582,1.19080478,4367.1,4367.0,0.8266]
[1757555717879,1.42080478,4367.1,4367.0,0.8266]
[1757555729387,2.01386894,4367.1,4367.0,0.8266]
[1757555729790,1.42080478,4367.1,4367.0,0.8266]
[1757555730085,2.01386741,4367.1,4367.0,0.8266]
[1757555730792,1.42080478,4367.1,4367.0,0.8266]
[1757555730994,2.01387661,4367.1,4367.0,0.8266]
[1757555734293,2.01387661,4367.1,4367.0,0.3109]
[1757555734492,0.2036,4366.1,4366.0,0.4975]
[1757555735103,0.2036,4366.1,4366.0,0.72654]
[1757555735504,0.5245,4366.4,4366.0,0.72654]
[1757555735708,0.7281,4366.4,4366.3,0.4107]
[1757555736595,0.9312,4366.4,4366.3,0.7086]
[1757555738608,0.6367,4366.4,4366.3,0.7086]
[1757555738805,0.4336,4366.4,4366.3,0.7086]
[1757555739005,0.23,4366.4,4366.3,0.7086]
[1757555740208,0.2036,4366.9,4366.8,0.7086]
[1757555740406,0.4336,4366.9,4366.8,0.7086]
[1757555740708,0.9312,4366.9,4366.8,0.7086]
[1757555743206,1.52561265,4366.9,4366.8,0.7086]
[1757555743602,0.9312,4366.9,4366.8,0.7086]
[1757555743801,1.23111119,4366.9,4366.8,0.7086]
[1757555744205,1.52561119,4366.9,4366.8,0.7086]
[1757555745713,1.23111119,4366.9,4366.8,0.7086]
[1757555746518,1.52561119,4366.9,4366.8,0.7086]
[1757555747217,1.29561119,4366.9,4366.8,0.7086]
[1757555747516,1.52561119,4366.9,4366.8,0.7086]
[1757555748115,1.29561119,4366.9,4366.8,0.7086]
[1757555748315,1.52561119,4366.9,4366.8,0.7086]
[1757555750319,2.53066133,4366.9,4366.8,0.7086]
[1757555752515,2.30066133,4366.9,4366.8,0.7086]
[1757555752715,2.53066133,4366.9,4366.8,0.7086]
[1757555753110,1.93625014,4366.9,4366.8,0.7086]
[1757555754214,1.64175014,4366.9,4366.8,0.7086]
[1757555754416,1.93625014,4366.9,4366.8,0.7086]
[1757555754815,1.41175014,4366.9,4366.8,0.7086]
[1757555755008,0.23,4366.9,4366.8,0.7086]
[1757555755213,1.41175014,4367.6,4367.5,0.5404]
[1757555755516,2.53081048,4367.6,4367.5,0.8383]
[1757555755713,2.53081048,4367.6,4367.5,0.7086]
[1757555756408,2.53081048,4367.6,4367.5,0.8383]
[1757555759019,2.53081048,4367.6,4367.5,0.5114]
[1757555766319,1.93625014,4367.6,4367.5,0.5114]
[1757555766520,1.93625014,4367.6,4367.5,0.7165]
[1757555766725,1.93625014,4367.6,4367.5,0.8402]
[1757555772827,0.9312,4367.6,4367.5,0.8402]
[1757555773024,1.93625014,4367.6,4367.5,0.8402]
[1757555773924,1.93625014,4367.6,4367.5,0.5114]
[1757555774227,1.93625014,4367.6,4367.0,0.1297]
[1757555774228,0.4104,4367.2,4367.1,0.305]
[1757555774426,1.72755014,4367.2,4366.6,0.305]